Workbook

Sheet Sheet1
A1: USDA - RUS | C1: Assistance to High Energy Cost Rural Communities | I1: OMB No.
J2: 0572-0136
A3: SUMMARY OF INFORMATION COLLECTION | I3: Date Prepared
I4: 2021-05-11
A5: INSTRUCTIONS: | D5: > | G5: (h) TOTAL | I5: (k) TOTAL
A6: Use this form when a single information collection document involves multiple reporting and | D6: > | E6: - | F6: = (e) Average | G6: - | H6: = (g) Average | I6: - | J6: = (j) Average
A7: recordkeeping requirements. | D7: > | G7: (f) TOTAL | I7: (i) TOTAL
A8: IDENTIFICATION OF REPORTING AND RECORDKEEPING REQUIREMENTS | G8: ANNUAL BURDEN
C9: FORM | F9: REPORTS | J9: RECORDS
C10: NO(s) | D10: NO. OF | E10: NO. OF | F10: TOTAL | G10: HOURS | H10: TOTAL | I10: NO. OF | J10: ANNUAL | K10: TOTAL
A11: SECTION OF | C11: (If "none" | D11: RESPON- | E11: RESPONSES | F11: ANNUAL | G11: PER | H11: HOURS | I11: RECORD- | J11: HOURS PER | K11: RECORD-
A12: REGULATIONS | B12: DESCRIPTION | C12: so state) | D12: DENTS | E12: PER | F12: RESPONSES | G12: RESPONSE | H12: (Col. f & g) | I12: KEEPERS | J12: RECORD- | K12: KEEPING
E13: RESPOND- | F13: (Col. d & e) | J13: KEEPER | K13: HOURS
E14: DENT | K14: (Col. i & j)
A15: (a) | B15: (b) | C15: (c) | D15: (d) | E15: e | F15: (f) | G15: (g) | H15: (h) | I15: (i) | J15: (j) | K15: (k)
B16: ITEMS APPROVED UNDER THIS COLLECTION
B17: Narrative Grant Proposal Application | C17: Non-Form | D17: 60 | E17: 1 | F17: =SUM(D17*E17) -> 60 | G17: 10 | H17: =SUM(F17*G17) -> 600
B18: RUS Environmental Profile | C18: Non-Form | D18: 60 | E18: 1 | F18: =SUM(D18*E18) -> 60 | G18: 1 | H18: =SUM(F18*G18) -> 60
B19: Grant Award and Post Award (Selected from 60 applicant respondents)
B20: Grant Agreement | C20: Non-Form | D20: 12 | E20: 1 | F20: =SUM(D20*E20) -> 12 | G20: 1 | H20: =SUM(F20*G20) -> 12
B21: Performance Reports | C21: Non-Form | D21: 40 | E21: 4 | F21: =SUM(D21*E21) -> 160 | G21: 2 | H21: =SUM(F21*G21) -> 320
B22: Final Performance Report | C22: Non-Form | D22: 12 | E22: 1 | F22: =SUM(D22*E22) -> 12 | G22: 5 | H22: =SUM(F22*G22) -> 60
B23: Recordkeeping Requirements | C23: Non-Form | I23: 40 | J23: 3 | K23: 120
B24: Subtotal this Collection | F24: =SUM(F17:F23) -> 304 | H24: =SUM(H17:H23) -> 1052 | I24: =SUM(I17:I23) -> 40 | K24: =SUM(K17:K23) -> 120
B25: TOTALS | F25: =SUM(F24+I24) -> 344 | H25: =SUM(H24+K24) -> 1172
B27: FORMS APPROVED UNDER OTHER COLLECTIONS
B28: Application for Federal Assistance (4040-0004) | C28: SF-424 | D28: 60 | E28: 1 | F28: =SUM(D28*E28) -> 60 | G28: 0.75 | H28: =SUM(F28*G28) -> 45
B29: Budget Information Non-Construction Programs (4040-0006) | C29: SF-424A | D29: 60 | E29: 1 | F29: =SUM(D29*E29) -> 60 | G29: 1 | H29: =SUM(G29*F29) -> 60
B30: OR Budget Information Construction Programs (4040-0008) | C30: SF-424C
B31: Assurances Non-Construction Programs (4040-0009) | C31: SF-424B | D31: 60 | E31: 1 | F31: 60 | G31: 0.25 | H31: 15
B32: OR Assurances Construction Programs (4040-0009) | C32: SF-424D
B33: Representations Re: Felony Conviction (0505-0025) | C33: AD-3030 | D33: 60 | E33: 1 | F33: =SUM(D33*E33) -> 60 | G33: 0.5 | H33: 30
B34: Assurances Re: Felony Conviction and Tax Delinquency | C34: AD-3031 | D34: 12 | E34: 1 | F34: 12 | G34: 0.5 | H34: =F34*G34 -> 6
B35: Letter of Intent (0575-0015) | C35: RD 1942-46 | D35: 12 | E35: 1 | F35: =SUM(D35*E35) -> 12 | G35: 1 | H35: =SUM(F35*G35) -> 12
B36: Disclosure of Lobbying Activities (4040-0013) | C36: SF-LLL | D36: 60 | E36: 1 | F36: =SUM(D36*E36) -> 60 | G36: 0.25 | H36: =F36*G36 -> 15
B37: Post Award:
B38: Federal Financial Report (4040-0014) | C38: SF-425 | D38: 40 | E38: 4 | F38: =SUM(D38*E38) -> 160 | G38: 1.5 | H38: =SUM(F38*G38) -> 240
B39: Request for Reimbursement or Advance of Funds (4040-0012) | C39: SF-270 | D39: 2 | E39: 4 | F39: =D39*E39 -> 8 | G39: 1 | H39: =F39*G39 -> 8
B40: Outlay Report and Request for Reimbursement (Const.) (4040-0011) | C40: SF-271 | D40: 38 | E40: 4 | F40: =SUM(D40*E40) -> 152 | G40: 1 | H40: =F40*G40 -> 152
A42: RUS Form 36 (07-91)

Sheet Sheet2

Sheet Sheet3
